bitfinex/quotes_SOLUSD_20241123
["timestamp","ask_amount","ask_price","bid_price","bid_amount"]
[1732380813169,15.17294892,256.21,256.1,15.17294892]
[1732380813362,15.17294892,256.15,256.06,45.53774892]
[1732380813680,23.776884,256.14,256.08,15.17294892]
[1732380814776,23.776884,256.2,256.12,15.17294892]
[1732380814978,23.776884,256.2,256.1,15.17294892]
[1732380815162,23.776884,256.2,256.12,15.17294892]
[1732380815482,23.776884,256.22,256.14,15.17294892]
[1732380816270,15.17294892,256.21,256.12,15.17294892]
[1732380816456,23.776884,256.2,256.12,15.17294892]
[1732380816655,23.776884,256.2,256.11,20.0]
[1732380817484,48.18144892,256.36,256.08,15.17294892]
[1732380817485,23.776884,256.16,256.08,15.17294892]
[1732380817684,23.776884,256.16,256.06,40.3648]
[1732380817685,23.776884,256.16,256.11,20.0]
[1732380817873,23.776884,256.18,256.1,15.17294892]
[1732380818765,23.776884,256.2,256.12,15.17294892]
[1732380819592,23.776884,256.22,256.12,15.17294892]
[1732380819788,23.776884,256.2,256.12,15.17294892]
[1732380819973,23.776884,256.18,256.09,10.0]
[1732380820309,23.776884,256.18,256.12,15.17294892]
[1732380820472,23.776884,256.2,256.12,15.17294892]
[1732380820780,23.776884,256.2,256.1,15.17294892]
[1732380820984,23.776884,256.2,256.12,15.17294892]
[1732380822097,23.776884,256.22,256.12,25.17294892]
[1732380822280,15.17294892,256.21,256.12,15.17294892]
[1732380822589,23.776884,256.2,256.12,15.17294892]
[1732380823987,23.776884,256.2,256.1,10.0]
[1732380823988,23.776884,256.2,256.1,15.17294892]
[1732380824166,12.6833,256.32,256.05,12.0304]
[1732380824167,23.776884,256.16,256.08,15.17294892]
[1732380824484,23.776884,256.14,256.06,15.17294892]
[1732380825685,23.776884,256.12,256.04,25.17294892]
[1732380825870,15.17294892,256.13,256.02,10.0]
[1732380826064,23.776884,256.12,256.02,25.17294892]
[1732380826266,23.776884,256.12,256.04,15.17294892]
[1732380827275,23.776884,256.12,256.02,15.17294892]
[1732380827589,23.776884,256.1,256.0,30.22955776]
[1732380827770,15.17294892,256.09,256.0,20.22955776]
[1732380827966,23.776884,256.1,256.0,15.17294892]
[1732380828272,23.776884,256.1,256.04,15.17294892]
[1732380829096,23.776884,256.11,256.04,15.17294892]
[1732380829586,23.776884,256.11,256.02,20.0]
[1732380829794,23.776884,256.09,256.01,15.17294892]
[1732380829995,23.776884,256.11,256.01,15.17294892]
[1732380830164,15.17294892,256.1,256.01,15.17294892]
[1732380830594,23.776884,256.09,256.01,15.17294892]
[1732380830994,23.776884,256.05,255.97,15.17294892]
[1732380831186,15.17294892,256.13,256.02,15.17294892]
[1732380831370,15.17294892,256.11,256.02,15.17294892]
[1732380831574,15.17294892,256.09,256.0,15.17294892]
[1732380832073,15.17294892,256.11,256.02,15.17294892]
[1732380832404,15.17294892,256.11,256.01,15.17294892]
[1732380832585,15.17294892,256.11,256.02,20.0]
[1732380832783,15.17294892,256.13,256.03,15.17294892]
[1732380832990,15.17294892,256.13,256.05,15.17294892]
[1732380833299,15.17294892,256.16,256.05,15.17294892]
[1732380833677,15.17294892,256.16,256.08,20.0]
[1732380834485,15.17294892,256.14,256.03,15.17294892]
[1732380834690,15.17294892,256.14,256.04,20.0]
[1732380835099,23.776884,256.13,256.04,20.0]
[1732380836183,23.776884,256.13,256.05,15.17294892]
[1732380836389,23.776884,256.13,256.06,20.0]
[1732380836692,23.776884,256.13,256.04,20.0]
[1732380836876,23.776884,256.11,256.03,15.17294892]
[1732380837298,23.776884,256.11,256.01,15.17294892]
[1732380838101,23.776884,256.11,256.03,15.17294892]
[1732380839184,15.17294892,256.09,256.01,15.17294892]
[1732380839803,38.94983292,256.11,256.03,15.17294892]
[1732380840394,38.94983292,256.11,256.01,15.17294892]
[1732380841112,38.94983292,256.11,256.02,20.0]
[1732380841708,23.776884,256.11,256.03,15.17294892]
[1732380841902,23.776884,256.12,256.03,15.17294892]
[1732380842409,15.17294892,256.13,256.03,15.17294892]
[1732380842606,9.48700835,256.12,256.02,9.48700835]
[1732380842848,9.48700835,256.12,256.03,20.0]
[1732380843119,9.48700835,256.14,256.04,9.48700835]
[1732380843422,9.48700835,256.16,256.06,9.48700835]
[1732380843909,22.54310835,256.23,256.09,20.0]
[1732380843910,9.48700835,256.18,256.09,20.0]
[1732380844312,9.48700835,256.2,256.1,9.48700835]
[1732380844814,9.48700835,256.18,256.08,9.48700835]
[1732380845015,9.48700835,256.18,256.09,20.0]
[1732380845312,9.48700835,256.18,256.08,9.48700835]
[1732380845815,9.48700835,256.16,256.07,20.0]
[1732380846016,9.48700835,256.16,256.06,9.48700835]
[1732380846406,23.776884,256.15,256.06,9.48700835]
[1732380847442,9.48700835,256.18,256.1,9.48700835]
[1732380848414,9.48700835,256.2,256.1,9.48700835]
[1732380848820,23.776884,256.19,256.1,9.48700835]
[1732380849009,9.48700835,256.18,256.08,9.48700835]
[1732380849334,9.48700835,256.16,256.09,20.0]
[1732380849637,9.48700835,256.19,256.1,9.48700835]
[1732380850134,9.48700835,256.23,256.14,9.48700835]
[1732380850518,9.48700835,256.21,256.13,20.0]
[1732380850720,9.48700835,256.21,256.12,20.0]
[1732380851110,9.48700835,256.19,256.1,20.0]
[1732380851813,9.48700835,256.17,256.08,20.0]
[1732380852315,9.48700835,256.11,256.02,9.48700835]
[1732380852711,23.776884,256.22,255.99,31.7856]
[1732380852712,9.48700835,256.14,256.05,9.48700835]
[1732380853216,9.48700835,256.18,256.09,9.48700835]
[1732380853628,9.48700835,256.16,256.07,9.48700835]
[1732380853937,22.8332,256.35,256.24,137.8]
[1732380854240,9.48700835,256.25,256.12,20.0]
[1732380854430,9.48700835,256.17,256.07,9.48700835]
[1732380854750,9.48700835,256.17,256.08,20.0]
[1732380855031,22.8332,256.35,256.1,20.0]
[1732380855032,9.48700835,256.19,256.1,20.0]
[1732380855617,10.0,256.34,256.1,20.0]
[1732380855618,9.48700835,256.17,256.1,20.0]
[1732380855839,9.48700835,256.17,256.09,9.48700835]
[1732380856735,9.48700835,256.17,256.07,9.48700835]
[1732380857234,9.48700835,256.17,256.09,9.48700835]
[1732380857546,9.48700835,256.19,256.11,9.48700835]
[1732380857831,9.48700835,256.19,256.12,20.0]
[1732380858011,9.48700835,256.21,256.13,9.48700835]
[1732380859020,9.48700835,256.21,256.14,20.0]
[1732380860716,9.48700835,256.21,256.09,10.0]
[1732380860717,9.48700835,256.17,256.12,20.0]
[1732380860926,9.48700835,256.17,256.1,20.0]
[1732380861241,9.48700835,256.21,256.12,20.0]
[1732380862142,9.48700835,256.19,256.12,20.0]
[1732380862342,9.48700835,256.17,256.08,20.0]
[1732380862724,9.48700835,256.19,256.09,9.48700835]
[1732380863038,9.48700835,256.19,256.1,20.0]
[1732380863530,9.48700835,256.17,256.1,20.0]
[1732380863729,9.48700835,256.19,256.11,9.48700835]
[1732380864037,9.48700835,256.21,256.13,9.48700835]
[1732380864341,30.53120085,256.35,256.17,9.48700835]
[1732380864342,9.48700835,256.27,256.17,9.48700835]
[1732380864744,9.48700835,256.25,256.17,9.48700835]
[1732380864932,9.48700835,256.25,256.16,20.0]
[1732380866255,9.48700835,256.25,256.17,9.48700835]
[1732380866462,9.48700835,256.29,256.19,9.48700835]
[1732380867846,9.48700835,256.27,256.19,9.48700835]
[1732380869933,9.48700835,256.23,256.17,5.26605328]
[1732380870135,12.8332,256.35,256.12,9.48700835]
[1732380870333,9.48700835,256.25,256.17,9.48700835]
[1732380870739,9.48700835,256.25,256.15,9.48700835]
[1732380870942,9.48700835,256.25,256.15,14.75306163]
[1732380871648,9.48700835,256.27,256.18,9.48700835]
[1732380872561,9.48700835,256.25,256.16,29.48700835]
[1732380872936,9.48700835,256.27,256.18,9.48700835]
[1732380873546,9.48700835,256.27,256.19,20.0]
[1732380874049,41.33760835,256.36,256.35,124.9668]
[1732380874050,31.8506,256.36,256.35,124.9668]
[1732380874256,50.8246167,256.36,256.2,9.48700835]
[1732380874431,9.48700835,256.28,256.21,20.0]
[1732380875045,9.48700835,256.3,256.21,20.0]
[1732380875242,9.48700835,256.3,256.2,9.48700835]
[1732380875443,9.48700835,256.33,256.25,9.48700835]
[1732380875653,9.48700835,256.33,256.23,9.48700835]
[1732380876543,9.48700835,256.37,256.28,9.48700835]
[1732380877453,9.48700835,256.37,256.23,5.26605328]
[1732380877759,9.48700835,256.37,256.27,9.48700835]
[1732380878946,9.48700835,256.31,256.23,5.26605328]
[1732380879166,9.48700835,256.29,256.14,36.11035328]
[1732380879472,9.48700835,256.27,256.18,14.75306163]
[1732380880963,23.776884,256.34,256.18,14.75306163]
[1732380881134,9.48700835,256.29,256.2,9.48700835]
[1732380881332,9.48700835,256.27,256.19,5.26605328]
[1732380881535,9.48700835,256.27,256.19,14.75306163]
[1732380882867,9.48700835,256.25,256.19,5.26605328]
[1732380883239,9.48700835,256.27,256.19,5.26605328]
[1732380884741,9.48700835,256.27,256.19,14.75306163]
[1732380884957,9.48700835,256.27,256.2,20.0]
[1732380885344,9.48700835,256.31,256.23,9.48700835]
[1732380885560,9.48700835,256.33,256.24,5.26605328]
[1732380885861,9.48700835,256.33,256.25,9.48700835]
[1732380886063,9.48700835,256.35,256.26,5.26605328]
[1732380886638,30.4574,256.42,256.29,9.48700835]
[1732380886639,9.48700835,256.37,256.29,9.48700835]
[1732380886954,9.48700835,256.37,256.3,5.26605328]
[1732380887147,9.48700835,256.4,256.31,29.48700835]
[1732380887461,9.48700835,256.4,256.31,34.75306163]
[1732380887643,9.48700835,256.38,256.32,5.26605328]
[1732380887965,9.48700835,256.36,256.28,20.0]
[1732380888158,9.48700835,256.36,256.29,5.26605328]
[1732380888159,9.48700835,256.31,256.29,5.26605328]
[1732380888469,9.48700835,256.3,256.22,20.0]
[1732380889577,9.48700835,256.3,256.21,12.389]
[1732380889743,9.48700835,256.3,256.21,17.65505328]
[1732380890069,9.48700835,256.28,256.22,5.26605328]
[1732380890247,23.776884,256.27,256.22,5.26605328]
[1732380890441,9.48700835,256.26,256.22,5.26605328]
[1732380890663,9.48700835,256.26,256.19,5.26605328]
[1732380891437,9.48700835,256.28,256.2,9.48700835]
[1732380891661,23.776884,256.29,256.21,25.26605328]
[1732380892344,23.776884,256.29,256.22,9.48700835]
[1732380892561,9.48700835,256.32,256.23,25.26605328]
[1732380892757,30.4574,256.42,256.27,20.0]
[1732380892962,30.4574,256.42,256.28,14.75306163]
[1732380892963,9.48700835,256.36,256.28,14.75306163]
[1732380893269,30.4574,256.42,256.28,14.75306163]
[1732380893270,9.48700835,256.38,256.28,14.75306163]
[1732380893851,9.48700835,256.38,256.29,20.0]
[1732380894156,9.48700835,256.4,256.31,20.0]
[1732380894348,9.48700835,256.4,256.32,5.26605328]
[1732380895551,23.776884,256.39,256.32,5.26605328]
[1732380895876,30.4574,256.42,256.32,5.26605328]
[1732380895877,9.48700835,256.38,256.32,5.26605328]
[1732380896052,23.776884,256.37,256.28,9.48700835]
[1732380896259,23.776884,256.35,256.29,20.0]
[1732380896649,23.776884,256.35,256.28,5.26605328]
[1732380896851,9.48700835,256.36,256.28,5.26605328]
[1732380897070,23.776884,256.37,256.28,14.75306163]
[1732380897365,23.776884,256.37,256.3,9.48700835]
[1732380897546,23.776884,256.37,256.3,14.75306163]
[1732380897751,23.776884,256.37,256.31,5.26605328]
[1732380898355,23.776884,256.35,256.28,9.48700835]
[1732380898561,23.776884,256.35,256.27,20.0]
[1732380899246,23.776884,256.35,256.28,9.48700835]
[1732380899856,9.48700835,256.38,256.28,14.75306163]
[1732380900256,9.48700835,256.38,256.29,5.26605328]
[1732380901342,9.48700835,256.38,256.3,20.0]
[1732380901572,9.48700835,256.36,256.3,20.0]
[1732380901870,23.776884,256.33,256.24,14.75306163]
[1732380902050,23.776884,256.33,256.25,20.0]
[1732380902248,9.48700835,256.32,256.25,20.0]
[1732380902452,9.48700835,256.3,256.24,5.26605328]
[1732380902760,9.48700835,256.32,256.24,5.26605328]
[1732380903080,23.776884,256.31,256.24,5.26605328]
[1732380903650,20.0,256.46,256.24,14.75306163]
[1732380903855,23.776884,256.33,256.24,14.75306163]
[1732380904068,9.48700835,256.34,256.26,9.48700835]
[1732380904385,9.48700835,256.36,256.27,25.4682755]
[1732380904557,9.48700835,256.39,256.3,9.48700835]
[1732380904760,9.48700835,256.39,256.31,5.4682755]
[1732380905272,9.48700835,256.37,256.31,5.4682755]
[1732380905968,9.48700835,256.41,256.32,9.48700835]
[1732380906172,9.48700835,256.41,256.33,5.4682755]
[1732380906555,9.48700835,256.43,256.34,9.48700835]
[1732380906874,9.48700835,256.45,256.36,9.48700835]
[1732380907072,9.48700835,256.49,256.4,9.48700835]
[1732380907270,9.48700835,256.49,256.41,5.4682755]
[1732380907778,9.48700835,256.51,256.42,9.48700835]
[1732380907955,9.48700835,256.51,256.43,5.4682755]
[1732380908372,30.3103,256.68,256.48,9.48700835]
[1732380908550,9.48700835,256.58,256.49,5.4682755]
[1732380908963,9.48700835,256.56,256.48,9.48700835]
[1732380909175,9.48700835,256.57,256.48,9.48700835]
[1732380909384,9.48700835,256.57,256.48,14.95528385]
[1732380909683,9.48700835,256.57,256.49,5.4682755]
[1732380910356,9.48700835,256.55,256.44,21.30330835]
[1732380910556,23.776884,256.54,256.44,21.30330835]
[1732380910764,23.776884,256.54,256.44,26.77158385]
[1732380910976,23.776884,256.54,256.46,9.48700835]
[1732380911157,23.776884,256.54,256.48,9.48700835]
[1732380911359,9.48700835,256.55,256.46,14.95528385]
[1732380911576,23.776884,256.54,256.46,14.95528385]
[1732380911966,23.776884,256.52,256.46,5.4682755]
[1732380912286,23.776884,256.52,256.34,7.94995089]
[1732380912287,23.776884,256.48,256.4,9.48700835]
[1732380912455,9.48700835,256.49,256.4,14.95528385]
[1732380912659,23.776884,256.48,256.4,9.48700835]
[1732380912864,10.0,256.62,256.43,9.48700835]
[1732380913068,23.776884,256.52,256.43,14.95528385]
[1732380913259,9.48700835,256.47,256.43,5.4682755]
[1732380913468,23.776884,256.46,256.39,14.95528385]
[1732380913680,9.48700835,256.62,256.42,9.48700835]
[1732380913681,9.48700835,256.51,256.42,9.48700835]
[1732380913977,23.776884,256.48,256.4,5.4682755]
[1732380914194,9.48700835,256.47,256.4,5.4682755]
[1732380914486,23.776884,256.46,256.4,5.4682755]
[1732380914860,23.776884,256.42,256.34,9.48700835]
[1732380915065,9.48700835,256.41,256.32,9.48700835]
[1732380915382,23.776884,256.36,256.28,14.95528385]
[1732380915570,9.48700835,256.35,256.28,5.4682755]
[1732380915778,43.776884,256.49,256.3,9.48700835]
[1732380916080,23.776884,256.39,256.32,9.48700835]
[1732380916258,23.776884,256.39,256.33,5.4682755]
[1732380917078,9.48700835,256.38,256.33,5.4682755]
[1732380917262,23.776884,256.35,256.28,9.48700835]
[1732380917583,23.776884,256.35,256.28,14.95528385]
[1732380917909,23.776884,256.35,256.29,5.4682755]
[1732380918079,23.776884,256.37,256.29,5.4682755]
[1732380918770,23.776884,256.35,256.29,5.4682755]
[1732380918972,23.776884,256.35,256.13,10.0]
[1732380918973,23.776884,256.31,256.21,9.48700835]
[1732380919162,23.776884,256.29,256.21,9.48700835]
[1732380920482,23.776884,256.33,256.25,9.48700835]
[1732380920666,23.776884,256.35,256.25,9.48700835]
[1732380920866,9.48700835,256.38,256.29,9.48700835]
[1732380921184,20.0,256.35,256.27,9.48700835]
[1732380921489,9.48700835,256.38,256.29,9.48700835]
[1732380922758,23.776884,256.37,256.29,9.48700835]
[1732380923162,9.48700835,256.36,256.27,9.48700835]
[1732380923388,23.776884,256.35,256.27,9.48700835]
[1732380923968,20.0,256.37,256.29,9.48700835]
[1732380924265,33.26389235,256.36,256.25,9.48700835]
[1732380925266,33.26389235,256.36,256.27,9.48700835]
[1732380925778,9.48700835,256.34,256.25,14.41000608]
[1732380925974,23.776884,256.33,256.25,4.92299773]
[1732380926167,23.776884,256.33,256.23,9.48700835]
[1732380926671,23.776884,256.31,256.23,9.48700835]
[1732380926890,43.776884,256.29,256.21,9.48700835]
[1732380927592,43.776884,256.27,256.19,21.30330835]
[1732380928196,9.48700835,256.26,256.19,11.8163]
[1732380928507,20.0,256.23,256.17,9.48700835]
[1732380928794,43.776884,256.17,256.07,11.6703]
[1732380928973,20.0,256.12,256.07,11.6703]
[1732380929182,33.26389235,256.11,255.96,11.6703]
[1732380929371,54.103984,256.17,255.99,9.48700835]
[1732380929372,20.0,256.06,255.99,9.48700835]
[1732380929591,20.0,256.06,255.97,9.48700835]
[1732380929787,9.48700835,256.05,255.97,9.48700835]
[1732380929978,20.0,256.06,255.99,9.48700835]
[1732380930170,20.0,256.04,255.96,21.15730835]
[1732380931580,20.0,256.02,255.96,21.15730835]
[1732380933384,20.0,256.04,255.98,9.48700835]
[1732380933585,30.3271,256.17,256.02,9.48700835]
[1732380933784,9.48700835,256.15,256.07,9.48700835]
[1732380933988,9.48700835,256.17,256.07,9.48700835]
[1732380934175,10.0,256.3,256.02,4.73521995]
[1732380934379,9.48700835,256.18,256.09,9.48700835]
[1732380934892,15.17281216,256.18,256.09,15.17281216]
[1732380935098,7.95072021,256.3,256.09,15.17281216]
[1732380935099,15.17281216,256.2,256.09,15.17281216]
[1732380935284,15.17281216,256.18,256.09,15.17281216]
[1732380935485,43.776884,256.15,256.05,15.17281216]
[1732380935695,20.0,256.15,256.07,15.17281216]
[1732380936404,15.17281216,256.23,256.07,15.17281216]
[1732380936405,20.0,256.17,256.07,15.17281216]
[1732380936574,20.0,256.15,256.07,15.17281216]
[1732380937079,23.776884,256.12,256.07,15.17281216]
[1732380937275,20.0,256.11,256.05,15.17281216]
[1732380938597,20.0,256.09,256.05,15.17281216]
[1732380938997,20.0,256.07,256.02,20.001921]
[1732380939180,20.0,256.07,256.02,15.17281216]
[1732380939378,20.0,256.07,256.0,15.17281216]
[1732380939589,20.0,256.05,255.98,15.17281216]
[1732380939795,20.0,256.05,256.0,15.17281216]
[1732380940096,20.0,256.09,256.0,15.17281216]
[1732380940881,20.0,256.11,256.04,15.17281216]
[1732380941476,20.0,256.13,256.04,15.17281216]
[1732380941685,20.0,256.11,256.02,15.17281216]
[1732380941891,20.0,256.09,256.02,15.17281216]
[1732380942097,20.0,256.11,256.04,15.17281216]
[1732380943105,15.17281216,256.17,256.08,15.17281216]
[1732380943411,15.17281216,256.13,256.04,15.17281216]
[1732380944199,20.0,256.11,256.04,15.17281216]
[1732380945102,35.17281216,256.11,256.02,15.17281216]
[1732380945485,15.17281216,256.23,256.02,15.17281216]
[1732380945486,20.0,256.09,256.02,15.17281216]
[1732380946402,23.776884,256.13,256.05,15.17281216]
[1732380946606,20.0,256.1,256.05,15.17281216]
[1732380946903,20.0,256.06,255.96,11.6703]
[1732380947088,23.776884,256.03,255.96,26.84311216]
[1732380947404,20.0,256.02,255.96,11.6703]
[1732380947588,23.776884,256.03,255.96,11.6703]
[1732380947589,20.0,256.0,255.96,11.6703]
[1732380947986,20.0,256.0,255.92,15.17281216]
[1732380948497,20.0,256.0,255.92,20.001921]
[1732380948677,20.0,255.98,255.92,20.001921]
[1732380949087,38.94969616,255.97,255.92,4.82910884]
[1732380949279,20.0,255.96,255.9,11.487]
[1732380949494,20.0,255.96,255.9,26.65981216]
[1732380949792,20.0,255.96,255.91,4.82910884]
[1732380951212,20.0,255.96,255.92,15.17281216]
[1732380951509,23.776884,255.99,255.92,15.17281216]
[1732380951804,20.0,255.98,255.93,5.05299773]
[1732380952010,20.0,255.98,255.94,15.17281216]
[1732380952214,15.17281216,256.05,255.96,15.17281216]
[1732380952505,15.17281216,256.07,255.98,15.17281216]
[1732380952704,15.17281216,256.09,256.0,15.17281216]
[1732380953506,15.17281216,256.09,256.0,14.67281216]
[1732380953709,15.17281216,256.11,256.02,15.17281216]
[1732380954206,20.0,256.1,256.02,15.17281216]
[1732380955094,20.0,256.08,256.0,15.17281216]
[1732380955315,20.0,256.08,256.0,20.22580989]
[1732380955820,20.0,256.08,256.0,15.17281216]
[1732380955987,20.0,256.08,255.98,15.17281216]
[1732380955988,20.0,256.06,255.98,15.17281216]
[1732380956594,29.49198476,256.06,255.97,9.49198476]
[1732380958307,20.0,256.03,255.95,9.49198476]
[1732380958514,9.49198476,256.02,255.95,9.49198476]
[1732380958702,20.0,256.01,255.95,9.49198476]
[1732380959100,20.0,256.01,255.93,9.49198476]
[1732380960304,20.0,255.99,255.91,9.49198476]
[1732380962207,20.0,255.99,255.93,9.49198476]
[1732380962425,20.0,256.03,255.93,9.49198476]
[1732380962600,9.49198476,256.02,255.93,9.49198476]
[1732380963012,20.0,256.01,255.93,9.49198476]
[1732380963210,9.49198476,256.0,255.91,9.49198476]
[1732380963412,20.0,255.99,255.91,9.49198476]
[1732380963613,20.0,255.99,255.9,11.487]
[1732380963614,20.0,255.97,255.89,9.49198476]
[1732380966221,20.0,256.01,255.93,9.49198476]
[1732380966419,9.49198476,256.0,255.91,9.49198476]
[1732380966619,20.0,255.99,255.91,9.49198476]
[1732380967725,20.0,255.97,255.85,7.90973354]
[1732380967918,20.0,255.97,255.87,9.49198476]
[1732380968245,20.0,255.99,255.94,9.49198476]
[1732380968535,9.49198476,256.07,256.05,128.30801524]
[1732380968838,9.49198476,256.07,255.98,9.49198476]
[1732380969421,9.49198476,256.05,255.96,9.49198476]
[1732380969611,41.966,256.14,255.96,9.49198476]
[1732380969811,41.966,256.14,256.0,9.49198476]
[1732380970012,9.49198476,256.09,256.0,9.49198476]
[1732380970241,41.966,256.14,255.89,23.776884]
[1732380970242,9.49198476,256.07,255.98,9.49198476]
[1732380970532,20.0,256.06,256.0,9.49198476]
[1732380970835,20.0,256.08,256.0,9.49198476]
[1732380971138,20.0,256.06,255.98,9.49198476]
[1732380971325,20.0,256.04,255.96,9.49198476]
[1732380972024,20.0,256.04,255.98,9.49198476]
[1732380972215,20.0,256.06,255.98,9.49198476]
[1732380973015,20.0,256.08,255.98,9.49198476]
[1732380973215,9.49198476,256.11,256.02,9.49198476]
[1732380973520,9.49198476,256.11,256.02,14.54498249]
[1732380973833,9.49198476,256.09,256.0,9.49198476]
[1732380974215,9.49198476,256.09,256.01,5.05299773]
[1732380974740,20.0,256.08,256.02,9.49198476]
[1732380974941,20.0,256.1,256.02,14.54498249]
[1732380975238,41.966,256.14,256.06,9.49198476]
[1732380975239,20.0,256.12,256.06,9.49198476]
[1732380975434,20.0,256.12,255.98,11.0782]
[1732380975435,20.0,256.12,256.07,5.05299773]
[1732380975812,20.0,256.12,256.03,9.49198476]
[1732380976016,20.0,256.12,256.05,5.05299773]
[1732380976234,20.0,256.1,256.01,9.49198476]
[1732380976444,20.0,256.1,256.02,5.05299773]
[1732380977016,20.0,256.1,256.03,9.49198476]
[1732380977321,20.0,256.1,256.04,5.05299773]
[1732380978619,20.0,256.08,256.04,4.98899773]
[1732380978840,20.0,256.08,255.99,14.54036026]
[1732380979043,20.0,256.08,256.02,5.0483755]
[1732380979532,43.776884,256.08,256.02,5.0483755]
[1732380979841,43.776884,256.08,255.99,9.49198476]
[1732380979842,20.0,256.06,255.99,14.54036026]
[1732380980037,20.0,256.06,256.0,5.0483755]
[1732380980347,20.0,256.07,256.0,5.0483755]
[1732380980637,29.49198476,256.07,256.0,5.0483755]
[1732380980942,20.0,256.05,255.97,9.49198476]
[1732380981122,20.0,256.05,255.98,5.0483755]
[1732380981323,20.0,256.03,255.95,9.49198476]
[1732380981531,20.0,256.03,255.96,5.0483755]
[1732380982055,23.776884,256.07,256.02,9.49198476]
[1732380982347,20.0,256.06,256.04,9.49198476]
[1732380982636,9.49198476,256.16,256.13,117.8]
[1732380982842,9.49198476,256.16,256.05,14.54036026]
[1732380982843,9.49198476,256.16,256.07,9.49198476]
[1732380983136,9.49198476,256.16,256.08,5.0483755]
[1732380983348,9.49198476,256.14,256.08,5.0483755]
[1732380983720,9.49198476,256.18,256.08,5.0483755]
[1732380983939,9.49198476,256.18,256.07,9.49198476]
[1732380984136,41.966,256.2,256.01,30.0275]
[1732380984137,9.49198476,256.16,256.05,9.49198476]
[1732380984341,9.49198476,256.14,256.05,9.49198476]
[1732380984520,9.49198476,256.14,256.03,9.49198476]
[1732380985044,23.776884,256.13,256.03,9.49198476]
[1732380985217,23.776884,256.13,256.01,5.0483755]
[1732380985218,23.776884,256.13,256.05,9.49198476]
[1732380985541,20.0,256.1,256.05,9.49198476]
[1732380986122,20.0,256.1,256.05,14.54036026]
[1732380987333,23.776884,256.09,256.05,5.0483755]
[1732380987643,20.0,256.08,256.01,9.49198476]
[1732380988436,23.776884,256.07,255.98,9.49198476]
[1732380988750,20.0,256.02,255.98,9.49198476]
[1732380988942,20.0,256.0,255.94,9.49198476]
[1732380989258,20.0,255.96,255.89,9.49198476]
[1732380990547,20.0,255.96,255.9,5.0483755]
[1732380991048,20.0,255.96,255.91,9.49198476]
[1732380991251,20.0,255.96,255.91,14.54036026]
[1732380991759,20.0,255.96,255.91,5.0483755]
[1732380992439,20.0,255.96,255.89,9.49198476]
[1732380992632,20.0,255.94,255.92,9.49198476]
[1732380993349,23.776884,255.99,255.92,9.49198476]
[1732380993649,20.0,256.02,255.94,9.49198476]
[1732380994348,9.49198476,256.01,255.92,14.54036026]
[1732380994536,20.0,256.0,255.92,9.49198476]
[1732380994848,20.0,255.98,255.92,9.49198476]
[1732380995346,23.776884,256.0,255.92,9.49198476]
[1732380995733,9.49198476,255.99,255.9,9.49198476]
[1732380995932,9.49198476,255.96,255.86,9.49198476]
[1732380996126,23.776884,255.95,255.86,9.49198476]
[1732380996528,9.49198476,255.94,255.86,9.49198476]
[1732380996743,43.776884,255.93,255.86,9.49198476]
[1732380996952,43.776884,255.93,255.85,5.0483755]
[1732380997151,43.776884,255.91,255.85,5.0483755]
[1732380997355,43.776884,255.91,255.84,9.49198476]
[1732380997930,43.776884,255.91,255.86,9.49198476]
[1732380998132,43.776884,255.91,255.88,9.49198476]
[1732380998369,20.0,255.95,255.88,9.49198476]
[1732380999233,20.0,255.95,255.86,14.54036026]
[1732380999632,20.0,255.91,255.86,9.49198476]
[1732380999842,23.776884,255.88,255.84,9.49198476]
[1732381000040,20.0,255.89,255.84,9.49198476]
[1732381000231,20.0,255.89,255.85,5.0483755]
[1732381000473,23.776884,255.92,255.85,5.0483755]
[1732381000627,23.776884,255.9,255.86,9.49198476]
[1732381000832,20.0,255.89,255.86,14.54036026]
[1732381001960,9.49198476,255.96,255.88,9.49198476]
[1732381002143,20.0,255.95,255.88,9.49198476]
[1732381002459,9.49198476,255.96,255.88,9.49198476]
[1732381003166,9.49198476,255.94,255.86,14.54036026]
[1732381003336,23.776884,255.93,255.84,9.49198476]
[1732381003865,20.0,255.92,255.84,9.49198476]
[1732381004036,20.0,255.9,255.84,9.49198476]
[1732381004238,20.0,255.88,255.84,9.49198476]